[Event "12th National Schools-ch 2024"]
[Site "Gyan Bhawan Patna"]
[Date "2024.02.08"]
[Round "5.9"]
[White "Sindhusree K"]
[Black "Kashthuri Bhai R"]
[Result "1-0"]
[ECO "E12"]
[WhiteElo "1445"]
[BlackElo "1639"]
[Annotator "NA RC"]
[PlyCount "85"]
[EventDate "2024.02.05"]
[EventCountry "IND"]
[SourceTitle "playchess.com"]
[Source "ChessBase"]
[SourceQuality "1"]
[TimeControl "5400+30"]

1. d4 {[%emt 0:00:08]} Nf6 {[%emt 0:00:18]} 2. c4 {[%emt 0:00:04]} e6 {[%emt 0:00:04]} 3. Nf3 {[%emt 0:00:04]} b6 {[%emt 0:00:32]} 4. a3 {[%emt 0:00:06]} Bb7 {[%emt 0:00:08]} 5. Nc3 {[%emt 0:00:06]} c5 {[%emt 0:00:59]} 6. d5 {[%emt 0:03:32]} exd5 {[%emt 0:02:48]} 7. cxd5 {[%emt 0:00:02]} d6 {[%emt 0:00:11]} 8. e4 {[%emt 0:07:53]} Be7 {[%emt 0:03:32]} 9. Be2 {[%emt 0:01:04]} O-O {[%emt 0:00:15]} 10. O-O {[%emt 0:00:06]} a6 {[%emt 0:04:29]} 11. a4 {[%emt 0:00:21]} Re8 {[%emt 0:00:26]} 12. Nd2 {[%emt 0:03:43]} Nbd7 {[%emt 0:09:05]} 13. f4 {[%emt 0:00:22]} Qc7 {[%emt 0:00:38]} 14. Nc4 {[%emt 0:08:26]} Bf8 {[%emt 0:03:25]} 15. Bf3 {[%emt 0:00:05]} Rab8 {[%emt 0:00:45]} 16. g4 {[%emt 0:14:37]} Kh8 {[%emt 0:01:10]} 17. g5 {[%emt 0:03:59]} Ng8 {[%emt 0:00:02]} 18. Bh5 {[%emt 0:01:17]} g6 {[%emt 0:05:31]} 19. Bg4 {[%emt 0:00:16]} Bg7 {[%emt 0:00:44]} 20. Qf3 {[%emt 0:04:17]} Bc8 {[%emt 0:02:09]} 21. Bd2 {[%emt 0:15:17]} b5 {[%emt 0:04:23]} 22. axb5 {[%emt 0:00:05]} axb5 {[%emt 0:00:05]} 23. Ne3 {[%emt 0:05:11]} c4 {[%emt 0:06:59]} 24. Bxd7 {[%emt 0:02:46]} Bxd7 {[%emt 0:05:05]} 25. f5 {[%emt 0:00:20]} Bd4 {[%emt 0:00:53]} 26. Rab1 {[%emt 0:07:07]} gxf5 {[%emt 0:08:26]} 27. Ne2 {[%emt 0:02:55]} fxe4 {[%emt 0:02:08]} 28. Qh5 {[%emt 0:00:25]} Bg7 {[%emt 0:01:09]} 29. Rxf7 {[%emt 0:02:14]} Re7 {[%emt 0:03:44]} 30. g6 {[%emt 0:03:14]} Nf6 {[%emt 0:02:39]} 31. Qh4 {[%emt 0:01:45]} Rxf7 {[%emt 0:01:36]} 32. gxf7 {[%emt 0:00:01]} Rf8 {[%emt 0:00:32]} 33. Bc3 {[%emt 0:02:34]} Rxf7 {[%emt 0:04:15]} 34. Rf1 {[%emt 0:01:00]} Qd8 {[%emt 0:08:24]} 35. Nd4 {[%emt 0:02:29]} Qg8 {[%emt 0:03:07]} 36. Ndf5 {[%emt 0:00:34]} Bxf5 {[%emt 0:01:54]} 37. Nxf5 {[%emt 0:00:07]} Ne8 {[%emt 0:01:44]} 38. Nxg7 {[%emt 0:01:09]} Rxf1+ {[%emt 0:11:22]} 39. Kxf1 {[%emt 0:00:03]} Nxg7 {[%emt 0:00:46]} 40. Qf6 {[%emt 0:00:06]} b4 {[%emt 0:00:26]} 41. Bd4 {[%emt 0:00:02]} e3 {[%emt 0:00:51]} 42. Ke2 {[%emt 0:00:45]} b3 {[%emt 0:00:10]} 43. Bc3 {[%emt 0:00:21]} 1-0

[Event "12th National Schools-ch 2024"]
[Site "Gyan Bhawan Patna"]
[Date "2024.02.08"]
[Round "5.10"]
[White "Shadhursshaan R"]
[Black "Gadhavi Veerbhadrasinh"]
[Result "1-0"]
[ECO "A87"]
[WhiteElo "2058"]
[BlackElo "1651"]
[Annotator "TA"]
[PlyCount "77"]
[EventDate "2024.02.05"]
[EventCountry "IND"]
[SourceTitle "playchess.com"]
[Source "ChessBase"]
[SourceQuality "1"]
[TimeControl "5400+30"]

{[%evp 15,77,39,48,49,66,27,22,14,33,43,150,145,206,221,277,46,36,45,49,52,88,91,189,194,201,198,194,194,171,92,250,249,256,248,260,247,253,245,368,362,348,356,544,396,561,539,797,212,381,172,147,170,170,169,229,122,132,142,170,50,950,952,1287,1231]} 1. d4 {[%emt 0:01:03]} f5 {[%emt 0:00:23]} 2. c4 {[%emt 0:00:29]} Nf6 {[%emt 0:00:18]} 3. Nc3 {[%emt 0:01:04]} g6 {[%emt 0:03:04]} 4. g3 {[%emt 0:00:13]} Bg7 {[%emt 0:00:22]} 5. Bg2 {[%emt 0:00:02]} O-O {[%emt 0:00:19]} 6. Nf3 {[%emt 0:00:15]} d6 {[%emt 0:00:37]} 7. O-O {[%emt 0:00:26]} Qe8 {[%emt 0:00:15]} 8. Re1 {[%emt 1:30:58]} e5 {[%emt 0:16:35]} 9. e4 {[%emt 0:00:00]} Nxe4 {[%emt 0:09:14]} 10. Nxe4 {[%emt 0:00:00]} fxe4 {[%emt 0:00:02]} 11. Rxe4 {[%emt 0:00:00] The position is equal.} (11. Ng5 {seems wilder.} Nc6 12. dxe5 Nxe5 13. c5) 11... Bf5 {[%emt 0:02:11]} 12. Re1 {[%emt 0:00:00][%cal Be4e1,Be1d1,Bd1d3,Bd3d7][%mdl 32]} c6 {[%emt 0:04:27]} (12... Nc6 $14) 13. c5 $16 {[%emt 0:00:00]} Qd7 {[%emt 0:24:43]} (13... dxc5 $16 14. Nxe5 (14. dxe5 Na6 $16) 14... cxd4) 14. cxd6 $18 {[%emt 0:00:00]} (14. dxe5 d5 $16) 14... Qxd6 {[%emt 0:00:26] [#]} 15. dxe5 $2 {[%emt 0:00:00]} (15. Nxe5 Be6 16. Bf4 Bd5 $18) ({Only move:} 15. Qb3+ $1 $18 Qe6 16. Qxb7 (16. dxe5 Qxb3 17. axb3 Nd7 $16)) 15... Qxd1 $14 {[%emt 0:00:28]} 16. Rxd1 {[%emt 0:00:00]} Bg4 {[%emt 0:01:19]} 17. Rd3 {[%emt 0:00:00]} Bxf3 {[%emt 0:00:25]} 18. Bxf3 {[%emt 0:00:00]} (18. Rxf3 Rxf3 19. Bxf3 Nd7 $14) 18... Bxe5 {[%emt 0:00:33]} (18... Na6 $16) 19. Bh6 $18 {[%emt 0:00:00]} Bg7 {[%emt 0:08:02]} 20. Bxg7 {[%emt 0:00:00]} Kxg7 {[%emt 0:00:04]} 21. Re1 {[%emt 0:00:00]} Na6 {[%emt 0:00:52]} 22. Rd7+ {[%emt 0:00:00]} (22. Re7+ $18 Kg8 23. Ra3 (23. Rxb7 $2 Nc5 $19)) 22... Kh6 $2 {[%emt 0:02:07]} (22... Kg8 $16) 23. Kg2 {[%emt 0:00:00][%cal Oe1e7] aiming for Ree7!} Nc5 {[%emt 0:02:14]} 24. Rde7 {[%emt 0:00:00] Strongly threatening h4.} Rad8 {[%emt 0:02:59]} 25. b4 {[%emt 0:00:00]} Nd3 {[%emt 0:00:14]} 26. R1e4 {[%emt 0:09:00]} Rf5 {[%emt 0:12:50]} (26... b6 {might work better.} 27. h4 (27. Rxa7 Rde8 $18) 27... Rf6 28. Rxa7 g5) 27. Rh4+ {[%emt 0:00:00]} (27. Rxb7 Rdf8 28. Be2 Rxf2+ 29. Kh3 Rd8 $14) 27... Kg5 {[%emt 0:00:01]} 28. Rhxh7 {[%emt 0:00:00] h4+ would kill now.} (28. Rxb7 $2 Ne1+ 29. Kh3 Nxf3 $19 (29... Rxf3 $2 30. Rg4+ Kf6 31. Rxa7 $19)) 28... Rdf8 {[%emt 0:00:20]} (28... Rff8 $142 29. Re6 (29. Rxb7 Ne1+ 30. Kf1 Nxf3 $19) 29... Rfe8) 29. h4+ {[%emt 0:00:00]} Kf6 {[%emt 0:00:09]} 30. g4 {[%emt 0:00:00]} (30. Rxb7 Ne1+ 31. Kh3 Rxf3 $11 (31... Nxf3 32. Rbd7 $17)) 30... Rf4 {[%emt 0:04:33]} 31. g5+ {[%emt 0:00:00]} (31. Rxb7 $2 Ne1+ (31... Nxb4 $2 32. Kg3 $18) 32. Kh2 Nxf3+ (32... Rxf3 33. Rhe7 $17) 33. Kg3 Ke5 34. Rhe7+ Kd4 $19) (31. Kg3 $142) 31... Kf5 {[%emt 0:00:02]} 32. Kg3 {[%emt 0:00:00]} (32. Rxb7 $2 Ne1+ (32... Nxb4 $2 33. Kg3 $18) 33. Kf1 Nxf3 $19) (32. Be2 $142 Ne5 33. f3 (33. Rxb7 Ke4 $14)) 32... Ne5 {[%emt 0:02:49]} 33. Bd1 {[%emt 0:00:00] White is more active.} Rc4 {[%emt 0:00:12] [#] Inhibits Bc2+.} 34. f3 $1 $36 {[%emt 0:00:00][%mdl 2048] Threatens to win with Bb3. Black is under strong pressure.} (34. Rxb7 Rc1 35. Rbd7 Nxd7 36. Bg4+ (36. Rxd7 Ke5 $14) 36... Ke5 (36... Ke4 37. f3+ Ke3 38. Re7+ $16) 37. Re7+ Kd5 38. Rxd7+ Kc4 $11) 34... Rc1 {[%emt 0:01:30]} (34... Rc3 $142 35. Rxb7 Rc1) 35. Be2 {[%emt 0:00:00]} (35. Bb3 $18 {[%csl Ge7][%cal Rb3e6]} Rg1+ 36. Kf2) 35... Rg1+ $16 {[%emt 0:01:05]} 36. Kf2 {[%emt 0:00:00]} Rc1 {[%emt 0:01:40]} 37. Ke3 {[%emt 0:00:00]} ({Better is} 37. Rxb7 $18 Kf4 38. Rxa7) 37... Rc3+ $2 {[%emt 0:00:07][%mdl 8192]} (37... Rd8 $14) 38. Kd4 $18 {[%emt 0:00:00]} Rd3+ {[%emt 0:01:25]} 39. Bxd3+ {[%emt 0:00:00] Weighted Error Value: White=0.54/Black=0.45.  Loses game:     	---       	Black=1      Missed win:     	White=1     	---        Mistake:       	White=4     	Black=7      Inaccurate:     	White=1     	Black=5      OK:         	White=12    	Black=8      Best:        	White=5     	Black=2      Strong:       	White=1     	---} 1-0

[Event "12th National Schools-ch 2024"]
[Site "Gyan Bhawan Patna"]
[Date "2024.02.08"]
[Round "6.2"]
[White "Oishik Mondal"]
[Black "Mohd Ismail Siddiqui"]
[Result "1-0"]
[ECO "D38"]
[WhiteElo "1524"]
[BlackElo "1357"]
[Annotator "NA RC"]
[PlyCount "107"]
[EventDate "2024.02.05"]
[EventCountry "IND"]
[SourceTitle "playchess.com"]
[Source "ChessBase"]
[SourceQuality "1"]
[TimeControl "5400+30"]

1. d4 {[%emt 0:00:02]} Nf6 {[%emt 0:00:07]} 2. c4 {[%emt 0:00:09]} e6 {[%emt 0:00:08]} 3. Nf3 {[%emt 0:00:06]} d5 {[%emt 0:00:13]} 4. Nc3 {[%emt 0:00:07]} Bb4 {[%emt 0:00:33]} 5. Bg5 {[%emt 0:00:15]} Nbd7 {[%emt 0:01:03]} 6. e3 {[%emt 0:00:17]} O-O {[%emt 0:00:43]} 7. Bd3 {[%emt 0:00:33]} c5 {[%emt 0:06:05]} 8. O-O {[%emt 0:02:08]} Bxc3 {[%emt 0:01:04]} 9. bxc3 {[%emt 0:00:18]} Qc7 {[%emt 0:04:59]} 10. Rc1 {[%emt 0:01:56]} b6 {[%emt 0:02:05]} 11. Bf4 {[%emt 0:05:15]} Qd8 {[%emt 0:05:47]} 12. Ne5 {[%emt 0:11:03]} Bb7 {[%emt 0:02:49]} 13. Bg5 {[%emt 0:02:19]} Qc7 {[%emt 0:01:43]} 14. Nxd7 {[%emt 0:02:17]} Nxd7 {[%emt 0:00:08]} 15. cxd5 {[%emt 0:03:57]} Bxd5 {[%emt 0:05:33]} 16. c4 {[%emt 0:00:57]} Bb7 {[%emt 0:01:02]} 17. Bf4 {[%emt 0:05:17]} Qc6 {[%emt 0:03:08]} 18. f3 {[%emt 0:01:48]} cxd4 {[%emt 0:02:08]} 19. exd4 {[%emt 0:00:13]} e5 {[%emt 0:00:31]} 20. Be4 {[%emt 0:00:55]} Qc7 {[%emt 0:02:45]} 21. Bxb7 {[%emt 0:00:12]} Qxb7 {[%emt 0:00:14]} 22. Bxe5 {[%emt 0:01:26]} Nxe5 {[%emt 0:07:47]} 23. dxe5 {[%emt 0:00:24]} Qc7 {[%emt 0:02:43]} 24. f4 {[%emt 0:01:07]} Rfd8 {[%emt 0:03:47]} 25. Qe2 {[%emt 0:01:20]} Qc5+ {[%emt 0:05:05]} 26. Kh1 {[%emt 0:00:12]} Rac8 {[%emt 0:00:47]} 27. h3 {[%emt 0:02:01]} Rd4 {[%emt 0:02:36]} 28. e6 {[%emt 0:00:08]} fxe6 {[%emt 0:04:19]} 29. Qxe6+ {[%emt 0:00:08]} Kh8 {[%emt 0:00:09]} 30. f5 {[%emt 0:04:24]} Rxc4 {[%emt 0:14:05]} 31. Rce1 {[%emt 0:00:16]} Qc6 {[%emt 0:01:42]} 32. Qf7 {[%emt 0:01:23]} Rc2 {[%emt 0:01:15]} 33. Rg1 {[%emt 0:00:49]} h6 {[%emt 0:05:27]} 34. Re6 {[%emt 0:01:13]} Qc7 {[%emt 0:05:56]} 35. Re7 {[%emt 0:00:52]} Qg3 {[%emt 0:00:33]} 36. f6 {[%emt 0:00:15]} Rg8 {[%emt 0:01:38]} 37. Qh5 {[%emt 0:06:26]} Rc5 {[%emt 0:03:14]} 38. Qf7 {[%emt 0:09:14]} Rcc8 {[%emt 0:00:53]} 39. Rf1 {[%emt 0:02:26]} Rc2 {[%emt 0:02:23]} 40. Rg1 {[%emt 0:03:29]} Rcc8 {[%emt 0:00:18]} 41. Qe6 {[%emt 0:01:28]} Rcd8 {[%emt 0:01:49]} 42. f7 {[%emt 0:00:32]} Rgf8 {[%emt 0:00:13]} 43. Re8 {[%emt 0:00:08]} Qb8 {[%emt 0:00:32]} 44. Re1 {[%emt 0:00:37]} Qa8 {[%emt 0:01:11]} 45. Rxf8+ {[%emt 0:00:24]} Rxf8 {[%emt 0:00:09]} 46. Qe8 {[%emt 0:00:04]} g5 {[%emt 0:00:53]} 47. Qxa8 {[%emt 0:00:05]} Rxa8 {[%emt 0:00:13]} 48. Re8+ {[%emt 0:00:04]} Kh7 {[%emt 0:00:22]} 49. Rxa8 {[%emt 0:00:04]} g4 {[%emt 0:00:11]} 50. f8=Q {[%emt 0:00:12]} Kg6 {[%emt 0:00:09]} 51. Rxa7 {[%emt 0:00:05]} Kg5 {[%emt 0:00:36]} 52. Rg7+ {[%emt 0:00:05]} Kh4 {[%emt 0:00:24]} 53. Rxg4+ {[%emt 0:00:05]} Kh5 {[%emt 0:02:15]} 54. Qe8# {[%emt 0:00:25]} 1-0

[Event "12th National Schools-ch 2024"]
[Site "Gyan Bhawan Patna"]
[Date "2024.02.08"]
[Round "6.3"]
[White "Pal Vedika"]
[Black "Pavithra R V"]
[Result "1/2-1/2"]
[ECO "B52"]
[WhiteElo "1539"]
[BlackElo "1440"]
[Annotator "NA RC"]
[PlyCount "219"]
[EventDate "2024.02.05"]
[EventCountry "IND"]
[SourceTitle "playchess.com"]
[Source "ChessBase"]
[SourceQuality "1"]
[TimeControl "5400+30"]

1. e4 {[%emt 0:00:02]} c5 {[%emt 0:00:06]} 2. Nf3 {[%emt 0:00:09]} d6 {[%emt 0:00:05]} 3. Bb5+ {[%emt 0:00:07]} Bd7 {[%emt 0:00:18]} 4. c4 {[%emt 0:00:07]} Nc6 {[%emt 0:09:01]} 5. Nc3 {[%emt 0:07:44]} Nf6 {[%emt 0:02:09]} 6. d4 {[%emt 0:02:30]} cxd4 {[%emt 0:01:08]} 7. Nxd4 {[%emt 0:00:03]} a6 {[%emt 0:10:03]} 8. Ba4 {[%emt 0:04:09]} g6 {[%emt 0:03:52]} 9. O-O {[%emt 0:01:22]} Bg7 {[%emt 0:00:25]} 10. Re1 {[%emt 0:12:11]} O-O {[%emt 0:03:40]} 11. Bc2 {[%emt 0:07:20]} Nxd4 {[%emt 0:03:54]} 12. Qxd4 {[%emt 0:00:02]} Ng4 {[%emt 1:01:49]} 13. Qd2 {[%emt 0:09:30]} Rc8 {[%emt 0:00:00]} 14. Bb3 {[%emt 0:18:45]} Be6 {[%emt 0:00:00]} 15. Nd5 {[%emt 0:03:05]} Ne5 {[%emt 0:00:00]} 16. Qe2 {[%emt 0:03:49]} Nc6 {[%emt 0:00:00]} 17. Be3 {[%emt 0:02:06]} Nd4 {[%emt 0:00:00]} 18. Qd2 {[%emt 0:03:23]} Bxd5 {[%emt 0:00:00]} 19. exd5 {[%emt 0:09:15]} Nxb3 {[%emt 0:00:00]} 20. axb3 {[%emt 0:00:03]} Qd7 {[%emt 0:00:00]} 21. Rac1 {[%emt 0:02:36]} b5 {[%emt 0:00:00]} 22. c5 {[%emt 0:03:34]} dxc5 {[%emt 0:00:00]} 23. Bxc5 {[%emt 0:00:51]} Bf6 {[%emt 0:00:00]} 24. b4 {[%emt 0:00:54]} Rfd8 {[%emt 0:00:00]} 25. Rcd1 {[%emt 0:00:45]} Qb7 {[%emt 0:00:00]} 26. Qd3 {[%emt 0:02:41]} Rd7 {[%emt 0:00:00]} 27. Qf3 {[%emt 0:01:21]} Bxb2 {[%emt 0:00:00]} 28. Rd2 {[%emt 0:01:26]} Bf6 {[%emt 0:00:00]} 29. Rde2 {[%emt 0:03:17]} Qxd5 {[%emt 0:00:00]} 30. Qxf6 {[%emt 0:00:39]} Rxc5 {[%emt 0:00:00]} 31. Qxa6 {[%emt 0:00:39]} Rcc7 {[%emt 0:00:00]} 32. Qa1 {[%emt 0:00:57]} Ra7 {[%emt 0:00:00]} 33. Qb2 {[%emt 0:00:26]} Ra4 {[%emt 0:00:00]} 34. h3 {[%emt 0:00:44]} Qd4 {[%emt 0:00:00]} 35. Qc1 {[%emt 0:00:22]} Rxb4 {[%emt 0:00:00]} 36. Re4 {[%emt 0:00:42]} Rc4 {[%emt 0:00:00]} 37. Qg5 {[%emt 0:00:31]} Qxe4 {[%emt 0:00:00]} 38. Rxe4 {[%emt 0:00:01]} Rxe4 {[%emt 0:00:00]} 39. Qxb5 {[%emt 0:00:11]} Red4 {[%emt 0:00:00]} 40. Qb8+ {[%emt 0:00:22]} Kg7 {[%emt 0:00:00]} 41. Qe5+ {[%emt 0:00:04]} f6 {[%emt 0:00:00]} 42. Qe6 {[%emt 0:00:27]} R4d6 {[%emt 0:00:00]} 43. Qe3 {[%emt 0:00:34]} e5 {[%emt 0:00:00]} 44. Kh2 {[%emt 0:01:04]} Rd5 {[%emt 0:00:00]} 45. Qa3 {[%emt 0:00:38]} Rd2 {[%emt 0:00:00]} 46. Qa4 {[%emt 0:00:30]} f5 {[%emt 0:00:00]} 47. Qb5 {[%emt 0:01:05]} R2d5 {[%emt 0:00:00]} 48. Qc6 {[%emt 0:00:11]} e4 {[%emt 0:00:00]} 49. Qe6 {[%emt 0:00:14]} R5d6 {[%emt 0:00:00]} 50. Qe5+ {[%emt 0:00:04]} Kf7 {[%emt 0:00:00]} 51. Qh8 {[%emt 0:00:35]} Ke6 {[%emt 0:00:00]} 52. Kg3 {[%emt 0:00:53]} Rd3+ {[%emt 0:00:53]} 53. Kh2 {[%emt 0:00:08]} R3d6 {[%emt 0:00:13]} 54. h4 {[%emt 0:00:38]} Kd5 {[%emt 0:00:30]} 55. h5 {[%emt 0:01:04]} Kc4 {[%emt 0:01:39]} 56. Qe5 {[%emt 0:00:37]} Rd5 {[%emt 0:01:13]} 57. Qe6 {[%emt 0:00:19]} gxh5 {[%emt 0:00:24]} 58. Qh6 {[%emt 0:00:38]} Kc3 {[%emt 0:01:51]} 59. Qxh5 {[%emt 0:00:23]} f4 {[%emt 0:01:20]} 60. Qh6 {[%emt 0:00:38]} R7d6 {[%emt 0:01:47]} 61. Qg7+ {[%emt 0:00:41]} Rd4 {[%emt 0:01:07]} 62. Qg4 {[%emt 0:00:40]} e3 {[%emt 0:01:30]} 63. fxe3 {[%emt 0:00:26]} fxe3 {[%emt 0:00:07]} 64. Qe2 {[%emt 0:00:14]} Rd3 {[%emt 0:00:44]} 65. Qe1+ {[%emt 0:00:26]} Kc4 {[%emt 0:00:23]} 66. Qc1+ {[%emt 0:00:35]} Rc3 {[%emt 0:00:05]} 67. Qf1+ {[%emt 0:00:04]} Rdd3 {[%emt 0:00:28]} 68. Qe2 {[%emt 0:01:01]} Kb3 {[%emt 0:01:06]} 69. Kg1 {[%emt 0:00:29]} Rd2 {[%emt 0:00:14]} 70. Qb5+ {[%emt 0:00:44]} Kc2 {[%emt 0:00:01]} 71. Qa4+ {[%emt 0:00:17]} Rb3 {[%emt 0:00:09]} 72. Qa2+ {[%emt 0:00:27]} Kc3 {[%emt 0:00:43]} 73. Qa1+ {[%emt 0:00:17]} Rdb2 {[%emt 0:00:28]} 74. Qa5+ {[%emt 0:00:24]} Kc2 {[%emt 0:03:00]} 75. Qf5+ {[%emt 0:00:37]} Rd3 {[%emt 0:00:27]} 76. Kf1 {[%emt 0:00:57]} Kd2 {[%emt 0:02:21]} 77. Qa5+ {[%emt 0:00:23]} Rc3 {[%emt 0:04:05]} 78. Qd5+ {[%emt 0:00:25]} Kc1 {[%emt 0:00:13]} 79. Ke1 {[%emt 0:00:42]} Kb1 {[%emt 0:05:23]} 80. Qe4+ {[%emt 0:00:22]} Ka2 {[%emt 0:00:21]} 81. Qa4+ {[%emt 0:00:47]} Ra3 {[%emt 0:00:22]} 82. Qc4+ {[%emt 0:00:01]} Ka1 {[%emt 0:00:27]} 83. g4 {[%emt 0:00:40]} Kb1 {[%emt 0:01:22]} 84. Qe4+ {[%emt 0:00:36]} Ka1 {[%emt 0:00:08]} 85. Qc4 {[%emt 0:00:28]} Kb1 {[%emt 0:00:42]} 86. Qe4+ {[%emt 0:00:27]} Kc1 {[%emt 0:00:16]} 87. Qd4 {[%emt 0:00:46]} Rd2 {[%emt 0:00:47]} 88. Qc5+ {[%emt 0:00:23]} Kb2 {[%emt 0:00:04]} 89. Qb6+ {[%emt 0:00:20]} Rb3 {[%emt 0:00:39]} 90. Qf6+ {[%emt 0:00:10]} Ka2 {[%emt 0:00:43]} 91. Qa6+ {[%emt 0:00:23]} Kb2 {[%emt 0:00:13]} 92. Qf6+ {[%emt 0:00:32]} Ka3 {[%emt 0:00:34]} 93. Qa6+ {[%emt 0:00:25]} Kb4 {[%emt 0:00:14]} 94. Qb6+ {[%emt 0:00:41]} Kc4 {[%emt 0:00:24]} 95. Qe6+ {[%emt 0:00:18]} Kb4 {[%emt 0:00:34]} 96. Qb6+ {[%emt 0:00:03]} Ka3 {[%emt 0:00:17]} 97. Qa5+ {[%emt 0:00:24]} Kb2 {[%emt 0:00:05]} 98. Qe5+ {[%emt 0:00:14]} Kb1 {[%emt 0:01:17]} 99. Qe4+ {[%emt 0:00:39]} Ka1 {[%emt 0:00:18]} 100. Qe5+ {[%emt 0:00:19]} Rdb2 {[%emt 0:00:52]} 101. Kd1 {[%emt 0:01:59]} e2+ {[%emt 0:00:47]} 102. Ke1 {[%emt 0:00:06]} Rh3 {[%emt 0:00:39]} 103. Qa5+ {[%emt 0:00:33]} Ra2 {[%emt 0:00:27]} 104. Qe5+ {[%emt 0:00:28]} Kb1 {[%emt 0:00:12]} 105. Qb5+ {[%emt 0:00:31]} Rb2 {[%emt 0:00:37]} 106. Qf5+ {[%emt 0:00:02]} Kc1 {[%emt 0:00:34]} 107. Qf4+ {[%emt 0:00:40]} Kc2 {[%emt 0:00:25]} 108. Qe4+ {[%emt 0:00:45]} Kb3 {[%emt 0:00:27]} 109. Qd5+ {[%emt 0:00:17]} Kb4 {[%emt 0:00:15]} 110. Qd4+ {[%emt 0:00:31]} 1/2-1/2

[Event "12th National Schools-ch 2024"]
[Site "Gyan Bhawan Patna"]
[Date "2024.02.08"]
[Round "6.4"]
[White "Andalamala Hemal Varshan"]
[Black "Sayan Barua"]
[Result "1-0"]
[ECO "C47"]
[WhiteElo "1578"]
[BlackElo "1463"]
[Annotator "NA RC"]
[PlyCount "71"]
[EventDate "2024.02.05"]
[EventCountry "IND"]
[SourceTitle "playchess.com"]
[Source "ChessBase"]
[SourceQuality "1"]
[TimeControl "5400+30"]

1. e4 {[%emt 0:00:20]} e5 {[%emt 0:00:45]} 2. Nf3 {[%emt 0:00:40]} Nc6 {[%emt 0:00:25]} 3. Nc3 {[%emt 0:00:19]} Nf6 {[%emt 0:01:27]} 4. d4 {[%emt 0:00:39]} exd4 {[%emt 0:00:14]} 5. Nxd4 {[%emt 0:00:11]} Bb4 {[%emt 0:00:55]} 6. Nxc6 {[%emt 0:00:30]} bxc6 {[%emt 0:00:13]} 7. Bd3 {[%emt 0:00:07]} d5 {[%emt 0:00:30]} 8. exd5 {[%emt 0:00:36]} O-O {[%emt 0:00:51]} 9. O-O {[%emt 0:00:16]} Bg4 {[%emt 0:00:26]} 10. f3 {[%emt 0:01:12]} Bh5 {[%emt 0:00:12]} 11. Bg5 {[%emt 0:02:54]} Qd6 {[%emt 0:00:16]} 12. Kh1 {[%emt 0:02:34]} Bxc3 {[%emt 0:05:41]} 13. bxc3 {[%emt 0:00:24]} cxd5 {[%emt 0:01:40]} 14. Qd2 {[%emt 0:02:02]} Rfe8 {[%emt 0:17:37]} 15. Rab1 {[%emt 0:12:06]} Rab8 {[%emt 0:07:52]} 16. Qf2 {[%emt 0:20:46]} Nd7 {[%emt 0:21:49]} 17. Rxb8 {[%emt 0:07:53]} Nxb8 {[%emt 0:07:16]} 18. Qxa7 {[%emt 0:01:36]} c5 {[%emt 0:08:09]} 19. Qa4 {[%emt 0:10:51]} f6 {[%emt 0:02:21]} 20. Bf4 {[%emt 0:03:44]} Qe6 {[%emt 0:00:28]} 21. c4 {[%emt 0:03:17]} d4 {[%emt 0:02:01]} 22. h3 {[%emt 0:04:49]} Bg6 {[%emt 0:05:58]} 23. Bg3 {[%emt 0:01:08]} Qd7 {[%emt 0:08:14]} 24. Qa5 {[%emt 0:04:47]} Bxd3 {[%emt 0:01:56]} 25. cxd3 {[%emt 0:00:39]} Qf5 {[%emt 0:00:27]} 26. Re1 {[%emt 0:00:47]} Rc8 {[%emt 0:02:32]} 27. Qa8 {[%emt 0:04:20]} Rf8 {[%emt 0:03:00]} 28. Bxb8 {[%emt 0:00:33]} Qxd3 {[%emt 0:00:13]} 29. Qd5+ {[%emt 0:00:05]} Kh8 {[%emt 0:00:06]} 30. Bd6 {[%emt 0:01:39]} Rg8 {[%emt 0:00:08]} 31. Bxc5 {[%emt 0:00:30]} Qd2 {[%emt 0:00:08]} 32. Re4 {[%emt 0:02:09]} d3 {[%emt 0:00:14]} 33. Rd4 {[%emt 0:00:23]} Qxa2 {[%emt 0:00:24]} 34. Rxd3 {[%emt 0:00:07]} Qb1+ {[%emt 0:00:19]} 35. Rd1 {[%emt 0:00:07]} Qc2 {[%emt 0:00:21]} 36. Bd6 {[%emt 0:00:29]} 1-0

[Event "12th National Schools-ch 2024"]
[Site "Gyan Bhawan Patna"]
[Date "2024.02.08"]
[Round "6.5"]
[White "Nivedita V C"]
[Black "Adya Shree"]
[Result "1-0"]
[ECO "E01"]
[WhiteElo "1609"]
[BlackElo "1113"]
[Annotator "NA RC"]
[PlyCount "55"]
[EventDate "2024.02.05"]
[EventCountry "IND"]
[SourceTitle "playchess.com"]
[Source "ChessBase"]
[SourceQuality "1"]
[TimeControl "5400+30"]

1. d4 {[%emt 0:00:02]} d5 {[%emt 0:00:12]} 2. c4 {[%emt 0:00:03]} e6 {[%emt 0:00:08]} 3. Nf3 {[%emt 0:00:03]} Nf6 {[%emt 0:00:10]} 4. g3 {[%emt 0:00:04]} Nc6 {[%emt 0:01:38]} 5. Bg2 {[%emt 0:02:35]} b6 {[%emt 0:00:26]} 6. O-O {[%emt 0:01:16]} Bd6 {[%emt 0:03:01]} 7. Nc3 {[%emt 0:03:24]} Bb7 {[%emt 0:02:05]} 8. Bg5 {[%emt 0:04:26]} Be7 {[%emt 0:00:37]} 9. Ne5 {[%emt 0:06:56]} h6 {[%emt 0:12:12]} 10. Bxf6 {[%emt 0:04:38]} gxf6 {[%emt 0:02:19]} 11. cxd5 {[%emt 0:00:24]} Nxe5 {[%emt 0:05:26]} 12. dxe5 {[%emt 0:00:12]} exd5 {[%emt 0:09:10]} 13. exf6 {[%emt 0:03:35]} Bxf6 {[%emt 0:05:14]} 14. Nxd5 {[%emt 0:00:13]} Bxd5 {[%emt 0:00:49]} 15. Bxd5 {[%emt 0:00:23]} Rc8 {[%emt 0:02:51]} 16. Qa4+ {[%emt 0:00:22]} Kf8 {[%emt 0:01:54]} 17. Rad1 {[%emt 0:00:21]} Qe7 {[%emt 0:05:13]} 18. Bb3 {[%emt 0:01:09]} c6 {[%emt 0:03:08]} 19. Rd2 {[%emt 0:00:17]} b5 {[%emt 0:09:00]} 20. Qg4 {[%emt 0:00:26]} Rc7 {[%emt 0:12:11]} 21. Rfd1 {[%emt 0:02:20]} h5 {[%emt 0:06:28]} 22. Qf5 {[%emt 0:00:31]} Rh6 {[%emt 0:04:35]} 23. Rd7 {[%emt 0:01:00]} Qe5 {[%emt 0:03:00]} 24. Qh3 {[%emt 0:09:31]} Rh7 {[%emt 0:03:56]} 25. Rxc7 {[%emt 0:00:31]} Qxc7 {[%emt 0:00:30]} 26. Qf5 {[%emt 0:00:03]} Rh6 {[%emt 0:04:19]} 27. Rd7 {[%emt 0:00:17]} Qe5 {[%emt 0:02:02]} 28. Rxf7+ {[%emt 0:00:07]} 1-0